bitfinex/quotes_BTCUSD_20220303
["timestamp","ask_amount","ask_price","bid_price","bid_amount"]
[1646295704035,0.33427601,43562.0,43558.0,0.02705097]
[1646295704673,0.33427601,43563.0,43558.0,0.02705097]
[1646295704875,0.33427601,43563.0,43562.0,0.24559725]
[1646295705174,0.33427601,43563.0,43562.0,0.27264822]
[1646295705379,0.33427601,43563.0,43560.0,0.02705097]
[1646295705977,0.33427601,43563.0,43557.0,0.0459]
[1646295706376,0.33427601,43562.0,43560.0,0.25247359]
[1646295706576,0.33427601,43563.0,43557.0,0.0459]
[1646295706775,0.28656524,43560.0,43557.0,0.0459]
[1646295708033,0.28656524,43560.0,43559.0,0.23405755]
[1646295708635,0.28656524,43560.0,43557.0,0.005]
[1646295709035,0.28656524,43561.0,43557.0,0.005]
[1646295709635,0.28656524,43561.0,43556.0,0.3]
[1646295710236,0.28656524,43561.0,43557.0,0.2272729]
[1646295710437,0.28656524,43561.0,43557.0,0.25432387]
[1646295711238,0.28656524,43561.0,43557.0,0.2272729]
[1646295711438,0.28656524,43561.0,43560.0,0.02705097]
[1646295711882,0.28656524,43562.0,43560.0,0.02705097]
[1646295712288,0.28656524,43562.0,43560.0,0.03105097]
[1646295712881,0.28656524,43562.0,43560.0,0.004]
[1646295713686,0.28656524,43562.0,43557.0,0.4572729]
[1646295714184,0.28656524,43562.0,43561.0,0.02705097]
[1646295714382,0.28656524,43562.0,43559.0,0.19766905]
[1646295715432,0.28656524,43562.0,43561.0,0.02705097]
[1646295716434,0.28656524,43562.0,43559.0,0.19766905]
[1646295718638,0.28656524,43562.0,43559.0,0.17790215]
[1646295719274,0.28656524,43562.0,43561.0,0.003]
[1646295719775,0.28656524,43562.0,43561.0,0.0028674]
[1646295720174,0.35957173,43564.0,43561.0,0.0028674]
[1646295720375,0.28650207,43562.0,43561.0,0.0028674]
[1646295720575,0.5137014,43563.0,43557.0,0.23]
[1646295720776,0.28650001,43561.0,43557.0,0.23]
[1646295723035,0.28650001,43560.0,43557.0,0.23]
[1646295723431,0.28650001,43560.0,43559.0,0.14]
[1646295723829,0.28650001,43560.0,43557.0,0.23]
[1646295724035,0.28650001,43561.0,43557.0,0.23]
[1646295724235,0.28650001,43561.0,43557.0,0.44038497]
[1646295724831,0.28650001,43561.0,43557.0,0.43992877]
[1646295725232,0.28650001,43561.0,43557.0,0.2295438]
[1646295725632,0.28650001,43561.0,43557.0,0.2335438]
[1646295726680,0.28650001,43561.0,43557.0,0.51911352]
[1646295727277,0.28650001,43561.0,43559.0,0.18947014]
[1646295727878,0.28650001,43561.0,43560.0,0.02705097]
[1646295728078,0.2781952,43560.0,43559.0,0.18947014]
[1646295728278,0.2781952,43560.0,43559.0,0.32947014]
[1646295728679,0.2781952,43560.0,43559.0,0.14]
[1646295731542,0.56472747,43560.0,43559.0,0.14]
[1646295732141,0.2781952,43560.0,43559.0,0.14]
[1646295733542,0.2781952,43560.0,43559.0,0.35390189]
[1646295733744,0.2781952,43560.0,43559.0,0.14]
[1646295737696,0.2781952,43560.0,43559.0,0.143]
[1646295738925,0.61248284,43560.0,43559.0,0.14]
[1646295739528,0.61448284,43560.0,43559.0,0.14]
[1646295740727,0.32093092,43560.0,43559.0,0.14]
[1646295741426,0.31893092,43560.0,43559.0,0.14]
[1646295741677,0.32093092,43560.0,43559.0,0.14]
[1646295742882,0.31893092,43560.0,43559.0,0.14]
[1646295743278,0.6125982,43560.0,43559.0,0.14]
[1646295743478,0.2781952,43560.0,43559.0,0.143]
[1646295745929,0.6125982,43560.0,43559.0,0.143]
[1646295746928,0.6125982,43560.0,43559.0,0.14]
[1646295749383,0.8128682,43560.0,43559.0,0.14]
[1646295749984,0.50890641,43560.0,43559.0,0.14]
[1646295750187,0.50843959,43560.0,43559.0,0.14]
[1646295750786,0.30816959,43560.0,43559.0,0.14]
[1646295753650,0.31016959,43560.0,43559.0,0.14]
[1646295754849,0.30816959,43560.0,43559.0,0.14]
[1646295755751,0.31016959,43560.0,43559.0,0.14]
[1646295755949,0.6141995,43560.0,43559.0,0.14]
[1646295756551,0.80485377,43560.0,43559.0,0.14]
[1646295756780,0.49427353,43560.0,43559.0,0.14]
[1646295756979,0.49227353,43560.0,43559.0,0.14]
[1646295757479,0.30161926,43560.0,43559.0,0.14]
[1646295757678,0.30361926,43560.0,43559.0,0.14]
[1646295758882,0.30161926,43560.0,43559.0,0.14]
[1646295759482,0.30161926,43560.0,43559.0,0.143]
[1646295760728,0.30161926,43560.0,43559.0,0.14]
[1646295761528,0.30161926,43560.0,43559.0,0.143]
[1646295762728,0.30161926,43560.0,43559.0,0.14]
[1646295763232,0.30161926,43560.0,43559.0,0.33877925]
[1646295763629,0.30161926,43560.0,43559.0,0.34177925]
[1646295763829,0.30161926,43560.0,43559.0,0.143]
[1646295764815,0.30161926,43560.0,43559.0,0.14]
[1646295765715,0.30161926,43560.0,43559.0,0.143]
[1646295766415,0.30161926,43560.0,43559.0,0.141]
[1646295766816,0.30161926,43560.0,43559.0,0.138]
[1646295767623,0.30161926,43560.0,43559.0,0.141]
[1646295768941,0.30161926,43560.0,43559.0,0.138]
[1646295769541,0.30161926,43560.0,43559.0,0.141]
[1646295770944,0.30161926,43560.0,43559.0,0.138]
[1646295774301,0.30361926,43560.0,43559.0,0.138]
[1646295774699,0.30361926,43560.0,43559.0,0.141]
[1646295775447,0.30161926,43560.0,43559.0,0.138]
[1646295776556,0.30361926,43560.0,43559.0,0.138]
[1646295777552,0.30361926,43560.0,43557.0,0.2295438]
[1646295777752,0.27772838,43560.0,43559.0,0.12069025]
[1646295778051,0.30162149,43560.0,43559.0,0.12069025]
[1646295778451,0.30362149,43560.0,43559.0,0.12069025]
[1646295779682,0.30162149,43560.0,43559.0,0.12069025]
[1646295780484,0.30362149,43560.0,43559.0,0.12069025]
[1646295780686,0.30362149,43560.0,43557.0,0.2295438]
[1646295780883,0.27972838,43560.0,43559.0,0.09988634]
[1646295781083,0.30366585,43560.0,43559.0,0.09988634]
[1646295781886,0.30166585,43560.0,43559.0,0.09988634]
[1646295782089,0.30166585,43560.0,43559.0,0.03214733]
[1646295782786,0.30166585,43560.0,43559.0,0.03414733]
[1646295783548,0.27772838,43560.0,43559.0,0.3787516]
[1646295783746,0.27772838,43560.0,43559.0,0.23705174]
[1646295784149,0.27772838,43560.0,43559.0,0.53705174]
[1646295784349,0.27772838,43560.0,43559.0,0.81334602]
[1646295784548,0.27772838,43560.0,43559.0,0.81734602]
[1646295784746,0.33450486,43563.0,43560.0,0.23198508]
[1646295784747,0.28667654,43561.0,43560.0,0.23198508]
[1646295785046,0.32415185,43568.0,43560.0,0.36998508]
[1646295785047,0.28667654,43562.0,43560.0,0.36998508]
[1646295785246,0.28667654,43562.0,43561.0,0.138]
[1646295785647,0.28667654,43562.0,43561.0,0.438]
[1646295786047,0.28667654,43562.0,43561.0,0.43707345]
[1646295786685,0.17653391,43567.0,43561.0,0.43707345]
[1646295786686,0.33450486,43564.0,43561.0,0.43707345]
[1646295786887,0.28663313,43562.0,43561.0,0.3]
[1646295787085,0.28663313,43562.0,43561.0,0.43707345]
[1646295787888,0.28663313,43562.0,43560.0,0.23198508]
[1646295788288,0.28663313,43561.0,43560.0,0.23198508]
[1646295788792,0.33450486,43563.0,43560.0,0.23198508]
[1646295788990,0.33450486,43562.0,43560.0,0.23198508]
[1646295789392,0.33450486,43561.0,43560.0,0.23198508]
[1646295790436,0.33450486,43561.0,43560.0,0.23498508]
[1646295792534,0.33450486,43561.0,43560.0,0.23398508]
[1646295793137,0.33450486,43561.0,43557.0,0.2295438]
[1646295793138,0.02299,43559.0,43557.0,0.2295438]
[1646295793336,0.06621869,43558.0,43557.0,0.2295438]
[1646295793537,0.10207644,43558.0,43557.0,0.2295438]
[1646295794697,0.07908644,43558.0,43557.0,0.2295438]
[1646295796595,0.08108644,43558.0,43557.0,0.2295438]
[1646295797297,0.03518644,43558.0,43557.0,0.2295438]
[1646295797943,0.3344272,43558.0,43557.0,0.2295438]
[1646295798744,0.3344272,43558.0,43557.0,0.20570653]
[1646295799344,0.03318644,43558.0,43557.0,0.20570653]
[1646295799544,0.33442551,43558.0,43557.0,0.20570653]
[1646295800146,0.09517185,43558.0,43557.0,0.20570653]
[1646295800345,0.33441719,43558.0,43557.0,0.64277998]
[1646295800546,0.28662616,43559.0,43557.0,0.64277998]
[1646295800748,0.28662616,43560.0,43558.0,0.3]
[1646295801245,0.28662616,43560.0,43558.0,2.13037197]
[1646295801446,0.28662616,43560.0,43559.0,0.3]
[1646295801994,0.28662616,43560.0,43557.0,0.20570653]
[1646295802599,0.28662616,43561.0,43557.0,0.20570653]
[1646295802994,0.28662616,43560.0,43557.0,0.20570653]
[1646295803396,0.057431,43559.0,43557.0,0.20570653]
[1646295803598,0.057431,43559.0,43558.0,0.3]
[1646295806134,0.057431,43559.0,43557.0,0.20570653]
[1646295806535,0.28662616,43560.0,43557.0,0.20570653]
[1646295807935,0.28662616,43560.0,43559.0,0.19067174]
[1646295808736,0.28662616,43560.0,43557.0,0.20570653]
[1646295810790,0.28662616,43561.0,43557.0,0.20570653]
[1646295810992,0.45314488,43561.0,43557.0,0.20570653]
[1646295811194,0.28662616,43561.0,43557.0,0.20570653]
[1646295811398,0.28662616,43560.0,43557.0,0.20570653]
[1646295811700,0.28662616,43561.0,43557.0,0.20570653]
[1646295812796,0.34405716,43561.0,43557.0,0.20570653]
[1646295814634,0.28662616,43560.0,43557.0,0.20570653]
[1646295815636,0.28662616,43559.0,43557.0,0.20570653]
[1646295815832,0.28662616,43560.0,43557.0,0.20570653]
[1646295816988,0.057431,43561.0,43557.0,0.20570653]
[1646295816989,0.28662616,43561.0,43557.0,0.20570653]
[1646295817593,0.28662616,43561.0,43559.0,0.20999318]
[1646295817789,0.28662616,43562.0,43559.0,0.20999318]
[1646295817988,0.28662616,43562.0,43557.0,0.20570653]
[1646295818389,0.28662616,43561.0,43557.0,0.20570653]
[1646295818789,0.23882334,43559.0,43557.0,0.20570653]
[1646295819192,0.29625334,43559.0,43557.0,0.20570653]
[1646295819388,0.29625334,43559.0,43558.0,0.27245119]
[1646295819790,0.23882334,43559.0,43558.0,0.27245119]
[1646295820190,0.23882334,43559.0,43558.0,0.57245119]
[1646295821651,0.23882334,43559.0,43558.0,0.3]
[1646295822054,0.23882334,43559.0,43557.0,0.20570653]
[1646295822754,0.23882334,43559.0,43558.0,0.25666022]
[1646295823151,0.23882334,43559.0,43558.0,0.25659405]
[1646295825594,0.23882334,43560.0,43557.0,0.20570653]
[1646295826394,0.23882334,43558.0,43557.0,0.20570653]
[1646295827294,0.23882334,43558.0,43557.0,0.42326666]
[1646295827697,0.23882334,43559.0,43557.0,0.42326666]
[1646295828552,0.23882334,43559.0,43558.0,0.3]
[1646295830151,0.34405416,43561.0,43557.0,0.07535714]
[1646295830350,0.23883349,43558.0,43557.0,0.07535714]
[1646295837737,0.23883349,43559.0,43557.0,0.07535714]
[1646295838339,0.23883349,43558.0,43557.0,0.07535714]
[1646295839193,0.23883349,43558.0,43557.0,0.35821886]
[1646295839594,0.23883349,43558.0,43557.0,0.07535714]
[1646295840396,0.20847621,43559.0,43557.0,0.07535714]
[1646295840596,0.28662616,43560.0,43557.0,0.07535714]
[1646295840796,0.28662616,43560.0,43557.0,0.28815345]
[1646295842199,0.28662616,43560.0,43557.0,0.07535714]
[1646295842599,0.28662616,43559.0,43557.0,0.07535714]
[1646295844466,0.28662616,43558.0,43557.0,0.07535714]
[1646295847584,0.16832224,43559.0,43557.0,0.07535714]
[1646295847985,0.33441719,43558.0,43557.0,0.07535714]
[1646295848185,0.48731805,43558.0,43557.0,0.07535714]
[1646295848384,0.15290086,43558.0,43557.0,0.07535714]
[1646295850184,0.15290086,43558.0,43557.0,0.05394116]
[1646295853142,0.33444909,43558.0,43557.0,0.05394116]
[1646295854710,0.33444909,43558.0,43553.0,0.00016439]
[1646295854907,0.28665167,43556.0,43553.0,0.00016439]
[1646295855512,0.28665167,43556.0,43550.0,0.3]
[1646295855709,0.23886992,43553.0,43552.0,0.00016439]
[1646295855908,0.28665167,43556.0,43552.0,0.00016439]
[1646295856511,0.23886351,43554.0,43552.0,0.00016439]
[1646295856711,0.23886381,43553.0,43549.0,0.4444]
[1646295856911,0.28665167,43556.0,43549.0,0.4444]
[1646295856912,0.23887588,43551.0,43549.0,0.4444]
[1646295857115,0.23887588,43551.0,43542.0,0.38278525]
[1646295857116,0.29632588,43551.0,43550.0,0.05589492]
[1646295857315,0.34412139,43551.0,43550.0,0.05589492]
[1646295857511,0.05745,43551.0,43550.0,0.05589492]
[1646295858962,0.28667139,43552.0,43548.0,0.0001644]
[1646295859164,0.28667139,43551.0,43542.0,0.192]
[1646295859360,0.62407521,43553.0,43548.0,0.0001644]
[1646295859361,0.28667139,43550.0,43548.0,0.0001644]
[1646295859565,0.30966139,43551.0,43548.0,0.0001644]
[1646295859762,0.30966139,43550.0,43548.0,0.0001644]
[1646295859966,0.02299,43549.0,43548.0,0.0001644]
[1646295860362,0.28667139,43550.0,43542.0,0.1584704]
[1646295860565,0.28667139,43551.0,43546.0,0.0001644]
[1646295861364,0.33257139,43552.0,43546.0,0.0001644]
[1646295861566,0.33257139,43552.0,43540.0,0.41750607]
[1646295861567,0.02299,43551.0,43540.0,0.10253862]
[1646295861813,0.02299,43551.0,43518.0,0.38174004]
[1646295861814,0.00414303,43534.0,43518.0,0.38174004]
[1646295862017,0.00414303,43534.0,43517.0,0.173442]
[1646295862018,0.14990544,43523.0,43517.0,0.0011]
[1646295862213,0.14990544,43523.0,43515.0,0.04894385]
[1646295862214,0.50787986,43516.0,43515.0,0.0011]
[1646295862413,0.55377986,43516.0,43515.0,0.0011]
[1646295862613,0.55377986,43516.0,43515.0,0.34928074]
[1646295862814,0.55377986,43516.0,43515.0,0.21220729]
[1646295863211,0.50787986,43516.0,43515.0,0.21220729]
[1646295863713,0.50787986,43516.0,43515.0,0.34928074]
[1646295863914,0.50787986,43516.0,43515.0,0.21220729]
[1646295864512,0.50787986,43516.0,43515.0,0.42220729]
[1646295864912,0.50787986,43516.0,43515.0,0.55928074]
[1646295865758,0.50787986,43516.0,43515.0,0.42220729]
[1646295865957,0.50787986,43516.0,43515.0,0.2111]
[1646295868056,0.7,43515.0,43509.0,0.0011]
[1646295868456,0.85304819,43515.0,43509.0,0.0011]
[1646295871091,0.85304819,43515.0,43509.0,0.28139147]
[1646295871290,0.15304819,43515.0,43509.0,0.28139147]
[1646295871492,0.15304819,43515.0,43510.0,9.323e-05]
[1646295871690,0.50787986,43516.0,43510.0,9.323e-05]
[1646295872494,0.50787986,43516.0,43509.0,0.28139147]
[1646295872692,0.50787986,43516.0,43511.0,0.00019109]
[1646295872960,0.50787986,43516.0,43515.0,0.17005433]
[1646295873356,0.50787986,43516.0,43511.0,0.00019109]
[1646295873555,0.50787986,43516.0,43509.0,0.28139147]
[1646295873759,0.50787986,43516.0,43511.0,0.0001911]
[1646295873955,0.50787986,43516.0,43511.0,0.2101911]
[1646295874757,0.50787986,43516.0,43511.0,0.21]
[1646295874960,0.50787986,43516.0,43511.0,0.21019109]
[1646295875165,0.50787986,43516.0,43511.0,0.00019109]
[1646295875959,0.50787986,43516.0,43509.0,0.30438147]
[1646295876160,0.50787986,43516.0,43511.0,0.00018233]
[1646295877212,0.50787986,43516.0,43509.0,0.30438147]
[1646295877413,0.50787986,43516.0,43511.0,0.00018233]
[1646295878413,0.50787986,43516.0,43509.0,0.30438147]
[1646295878614,0.50787986,43516.0,43515.0,0.16831941]
[1646295878821,0.50787986,43516.0,43515.0,0.51647466]
[1646295879014,0.50787986,43516.0,43515.0,0.35129286]
[1646295879215,0.50787986,43516.0,43515.0,0.37428286]
[1646295879619,0.05,43526.0,43517.0,0.72479]
[1646295879821,0.15304819,43533.0,43525.0,0.18701028]
[1646295880018,0.16452819,43536.0,43529.0,0.10106114]
[1646295880218,0.39084877,43537.0,43526.0,1.11002658]
[1646295880456,0.39084877,43537.0,43530.0,0.00045937]
[1646295880649,0.39084877,43537.0,43531.0,0.62]
[1646295880847,0.39084877,43537.0,43532.0,0.0459]
[1646295881446,0.16462508,43536.0,43532.0,0.0459]
[1646295882044,0.21944708,43535.0,43532.0,0.0459]
[1646295882243,0.27690308,43535.0,43531.0,0.48733293]
[1646295882447,0.27690308,43535.0,43532.0,0.0459]
[1646295884702,0.27190308,43535.0,43532.0,0.0459]
[1646295886607,0.27190308,43535.0,43532.0,0.0509]
[1646295887608,0.27190308,43535.0,43533.0,0.24159759]
[1646295888047,0.052456,43535.0,43533.0,0.24159759]
[1646295888649,0.052456,43535.0,43533.0,0.24559759]
[1646295889450,0.052456,43535.0,43534.0,0.13707345]
[1646295890047,0.052456,43535.0,43534.0,0.14697972]
[1646295890649,0.052456,43535.0,43534.0,0.15097972]
[1646295891894,0.052456,43535.0,43534.0,0.14697972]
[1646295892091,0.052456,43535.0,43532.0,0.0782547]
[1646295892292,0.052456,43535.0,43534.0,0.24282052]
[1646295892495,0.052456,43535.0,43534.0,0.28872052]
[1646295893294,0.052456,43535.0,43534.0,0.08189373]
[1646295895569,0.50576277,43537.0,43535.0,0.02299]
[1646295895570,0.39084877,43537.0,43535.0,0.02299]
[1646295895769,0.39084877,43537.0,43536.0,0.65599373]
[1646295896168,0.38464877,43537.0,43536.0,0.65599373]
[1646295897168,0.30174877,43537.0,43536.0,0.67898373]
[1646295897369,0.24044877,43537.0,43536.0,0.67898373]
[1646295898169,0.24044877,43537.0,43536.0,0.65599373]
[1646295901998,0.24044877,43537.0,43536.0,1.38518373]
[1646295902203,0.24044877,43537.0,43536.0,1.53518373]
[1646295902401,0.24044877,43537.0,43536.0,0.81099373]
[1646295902801,0.24044877,43537.0,43536.0,0.66099373]
[1646295903246,0.24044877,43537.0,43536.0,0.65599373]
[1646295904848,0.24044877,43537.0,43536.0,0.08189373]
[1646295908110,0.24044877,43537.0,43536.0,0.08689373]
[1646295909211,0.24044877,43537.0,43536.0,0.08189373]
[1646295910012,0.24044877,43537.0,43536.0,0.08689373]
[1646295911250,0.24044877,43537.0,43536.0,0.08189373]
[1646295912045,0.24044877,43537.0,43536.0,0.08689373]
[1646295912546,0.24044877,43537.0,43536.0,0.04099373]
[1646295913146,0.24044877,43537.0,43533.0,0.24094715]
[1646295913348,0.24044877,43537.0,43536.0,0.03049373]
[1646295915195,0.24044877,43537.0,43525.0,0.59489151]
[1646295915393,0.29791177,43537.0,43525.0,0.5944]
[1646295915594,0.29291177,43537.0,43528.0,0.1225]
[1646295916193,0.29291177,43537.0,43529.0,0.16632053]
[1646295917794,0.29291177,43537.0,43535.0,2.55957438]
[1646295918743,0.29291177,43537.0,43529.0,0.17132053]
[1646295918944,0.29291177,43537.0,43530.0,0.3]
[1646295920046,0.29291177,43537.0,43530.0,0.304]
[1646295920248,0.29275448,43537.0,43530.0,0.304]
[1646295921047,0.29275448,43537.0,43535.0,0.27840687]
[1646295921452,0.29275448,43537.0,43536.0,0.18371896]
[1646295922094,0.29275448,43537.0,43530.0,0.25608243]
[1646295922897,0.29275448,43537.0,43535.0,0.27908629]
[1646295923795,0.29275448,43537.0,43531.0,0.16769436]
[1646295924399,0.48384558,43537.0,43531.0,0.16769436]
[1646295924997,0.48384558,43537.0,43536.0,0.28430697]
[1646295925201,0.29275448,43537.0,43531.0,0.16769436]
[1646295925957,0.29275448,43537.0,43531.0,0.17269436]
[1646295926356,0.29275448,43537.0,43534.0,0.27496467]
[1646295930014,0.29275448,43537.0,43534.0,0.27996467]
[1646295931215,0.48384558,43537.0,43531.0,0.16769436]
[1646295931414,0.1910911,43536.0,43531.0,0.16769436]
[1646295932217,0.02299,43535.0,43531.0,0.16769436]
[1646295932415,0.137902,43535.0,43531.0,0.16769436]
[1646295932817,0.137902,43535.0,43531.0,0.16749771]
[1646295933045,0.137902,43535.0,43528.0,0.1225]
[1646295933249,0.3289931,43535.0,43527.0,0.3]
[1646295933447,0.02299,43533.0,43525.0,0.44510701]
[1646295933649,0.114912,43535.0,43525.0,0.44510701]
[1646295933650,0.22813357,43530.0,43525.0,0.4444]
[1646295933848,0.28560457,43530.0,43525.0,0.4444]
[1646295934049,0.080461,43530.0,43529.0,0.03049373]
[1646295934248,0.080461,43530.0,43525.0,0.4444]
[1646295934646,0.057471,43530.0,43529.0,0.03049373]
[1646295935046,0.080461,43530.0,43529.0,0.03049373]
[1646295935448,0.057471,43530.0,43529.0,0.03049373]
[1646295940106,0.057471,43530.0,43529.0,0.03449373]
[1646295941363,0.057471,43530.0,43529.0,0.03049373]
[1646295942064,0.057471,43530.0,43529.0,0.03449373]
[1646295943266,0.057471,43530.0,43529.0,0.03049373]
[1646295944067,0.057471,43530.0,43529.0,0.03449373]
[1646295945406,0.057471,43530.0,43529.0,0.03049373]
[1646295949455,0.42675964,43534.0,43529.0,0.03049373]
[1646295949456,0.39084074,43534.0,43529.0,0.03049373]
[1646295949652,0.23829488,43534.0,43527.0,0.2]
[1646295949852,0.23829488,43534.0,43527.0,0.19953318]
[1646295950051,0.23829488,43534.0,43529.0,0.003]
[1646295950657,0.02299,43533.0,43529.0,0.003]
[1646295950854,0.02299,43533.0,43531.0,0.15458162]
[1646295952154,0.02299,43533.0,43527.0,0.17246561]
[1646295953556,0.02299,43533.0,43527.0,0.39735171]
[1646295953760,0.20455374,43533.0,43527.0,0.17246561]
[1646295953961,0.20409664,43533.0,43527.0,0.17246561]
[1646295954157,0.20409664,43533.0,43527.0,0.004]
[1646295954357,0.44239152,43533.0,43527.0,0.004]
[1646295955358,0.17814853,43532.0,43525.0,0.0011]
[1646295956157,0.17814853,43532.0,43525.0,0.0051]
[1646295957458,0.17814853,43532.0,43525.0,0.0011]
[1646295957658,0.0225329,43532.0,43525.0,0.0011]
[1646295957860,0.26082778,43532.0,43525.0,0.0011]
[1646295959296,0.0225329,43532.0,43525.0,0.0011]
[1646295959498,0.19118544,43530.0,43525.0,0.0011]
[1646295959699,0.19118544,43530.0,43529.0,0.03049373]
[1646295962300,0.26082778,43532.0,43529.0,0.03049373]
[1646295962499,0.23829488,43532.0,43525.0,0.0051]
[1646295962699,0.19119078,43529.0,43525.0,0.0051]
[1646295963156,0.21418078,43529.0,43525.0,0.0011]
[1646295963557,0.19119078,43528.0,43525.0,0.0011]
[1646295964557,0.19119078,43527.0,43525.0,0.0011]
[1646295964859,0.37941713,43527.0,43525.0,0.0011]
[1646295965258,0.18822635,43527.0,43525.0,0.0011]
[1646295965458,0.37941713,43527.0,43525.0,0.0011]
[1646295969817,0.19119078,43527.0,43525.0,0.0011]
[1646295970021,0.19119078,43528.0,43525.0,0.0051]
[1646295970447,0.19119078,43528.0,43526.0,0.28773641]
[1646295970648,0.19119078,43528.0,43526.0,1.98845103]
[1646295970851,0.19119078,43528.0,43526.0,0.28773641]
[1646295971451,0.19119078,43529.0,43526.0,0.28773641]
[1646295972052,0.19119078,43529.0,43526.0,0.29073641]
[1646295972755,0.19119078,43528.0,43526.0,0.29073641]
[1646295972952,0.17080414,43534.0,43527.0,0.3]
[1646295972953,0.19119078,43529.0,43527.0,0.3]
[1646295973152,0.03447,43535.0,43527.0,0.3]
[1646295973153,0.19119078,43530.0,43527.0,0.3]
[1646295973353,0.19119078,43531.0,43527.0,0.357456]
[1646295973951,0.19119078,43531.0,43527.0,0.361456]
[1646295974204,0.19119078,43531.0,43530.0,0.03049373]
[1646295974803,0.23829488,43532.0,43530.0,0.03039879]
[1646295975004,0.23829488,43532.0,43527.0,0.361456]
[1646295975203,0.19118941,43529.0,43527.0,0.361456]
[1646295975807,0.19118941,43529.0,43528.0,0.03039879]
[1646295976005,0.19118941,43529.0,43527.0,0.304]
[1646295976606,0.19118941,43529.0,43528.0,0.03039879]
[1646295977604,0.19118941,43530.0,43528.0,0.03039879]
[1646295977808,0.23829488,43531.0,43529.0,0.03039879]
[1646295978043,0.23829488,43531.0,43530.0,0.03039879]
[1646295978445,0.23798174,43531.0,43530.0,0.03039879]
[1646295979445,0.23798174,43531.0,43530.0,0.02994159]
[1646295981705,0.23798174,43531.0,43526.0,0.28773641]
[1646295981906,0.19122456,43528.0,43525.0,0.0011]
[1646295982111,0.19122456,43528.0,43525.0,0.0051]
[1646295982310,0.19122456,43528.0,43522.0,0.00070704]
[1646295982710,0.19122456,43528.0,43526.0,0.02994159]
[1646295982907,0.19122456,43528.0,43527.0,0.02994159]
[1646295984110,0.19122456,43528.0,43527.0,0.03394159]
[1646295984508,0.4875001,43536.0,43527.0,0.004]
[1646295984509,0.21440949,43530.0,43527.0,0.004]
[1646295984910,0.19123215,43528.0,43527.0,0.004]
[1646295985108,0.19123215,43528.0,43527.0,0.03394159]
[1646295985309,0.19123215,43528.0,43527.0,0.02994159]
[1646295986362,0.28663665,43532.0,43527.0,0.02994159]
[1646295986565,0.20033859,43530.0,43524.0,0.057461]
[1646295986764,0.19123481,43527.0,43524.0,0.057461]
[1646295986963,0.19123481,43526.0,43522.0,0.004]
[1646295987363,0.19123481,43526.0,43525.0,0.02994159]
[1646295987567,0.19123481,43527.0,43525.0,0.02994159]
[1646295987765,0.19123481,43527.0,43526.0,0.02994159]
[1646295989996,0.23904125,43529.0,43522.0,0.25006041]
[1646295990203,0.1912425,43526.0,43522.0,0.25006041]
[1646295990401,0.1912425,43526.0,43525.0,0.02994159]
[1646295991199,0.1912425,43527.0,43525.0,0.02994159]
[1646295991397,0.23904125,43529.0,43524.0,0.11928251]
[1646295991398,0.1912425,43526.0,43524.0,0.06182151]
[1646295991599,0.1912425,43526.0,43525.0,0.02994159]
[1646295992397,0.1912425,43527.0,43525.0,0.02994159]
[1646295992597,0.1912425,43527.0,43526.0,0.02994159]
[1646295993056,0.19123783,43527.0,43526.0,0.02994159]
[1646295993558,0.23904125,43529.0,43522.0,0.55006041]
[1646295993856,0.19123854,43526.0,43522.0,0.55006041]
[1646295994054,0.19123854,43526.0,43525.0,0.02994159]
[1646295996157,0.19123854,43526.0,43525.0,0.03394159]
[1646295997298,0.19123854,43526.0,43525.0,0.02994159]
[1646295998000,0.19123854,43526.0,43525.0,0.03394159]
[1646295999198,0.19123854,43526.0,43525.0,0.004]
[1646295999399,0.23904125,43528.0,43521.0,0.4444]
[1646295999598,0.23904125,43528.0,43519.0,0.23592]
[1646295999599,0.19124431,43525.0,43519.0,0.23592]
[1646295999800,0.19124431,43525.0,43519.0,0.21492]
[1646295999998,0.19124431,43525.0,43523.0,0.27158484]
[1646296000199,0.19124431,43525.0,43524.0,0.02994159]
[1646296000456,0.19124431,43525.0,43521.0,0.004]
[1646296001259,0.19124431,43525.0,43521.0,0.21712919]
[1646296001862,0.19124431,43525.0,43524.0,0.02994159]
[1646296003268,0.19124431,43525.0,43517.0,0.65508]
[1646296003465,0.23904125,43528.0,43517.0,0.65508]
[1646296003466,0.19125404,43523.0,43517.0,0.65508]
[1646296004063,0.19125404,43523.0,43517.0,0.45588]
[1646296004306,0.38357978,43523.0,43517.0,0.45588]
[1646296005506,0.19232574,43523.0,43517.0,0.45588]
[1646296006106,0.19232574,43523.0,43517.0,0.45988]
[1646296006307,0.38357978,43523.0,43517.0,0.45988]
[1646296006907,0.19232574,43523.0,43517.0,0.45988]
[1646296007107,0.38357978,43523.0,43517.0,0.45988]
[1646296007306,0.19125404,43523.0,43517.0,0.45588]
[1646296007508,0.23904125,43526.0,43517.0,0.513349]
[1646296007509,0.19125404,43524.0,43517.0,0.513349]
[1646296007707,0.19125404,43524.0,43517.0,0.813349]
[1646296007963,0.19125404,43524.0,43517.0,0.513349]
[1646296008164,0.19125404,43524.0,43517.0,0.518349]
[1646296009365,0.19125404,43524.0,43517.0,0.513349]
[1646296010167,0.19125404,43524.0,43517.0,0.518349]
[1646296010668,0.19125404,43524.0,43518.0,0.18595432]
[1646296010869,0.19125404,43525.0,43518.0,0.18595432]
[1646296011468,0.19125404,43525.0,43523.0,0.26808228]
[1646296011910,0.19125404,43525.0,43518.0,0.18595432]
[1646296012311,0.19125404,43525.0,43517.0,0.48914027]
[1646296012710,0.19125404,43525.0,43523.0,2.02549126]
[1646296013916,0.19125404,43525.0,43524.0,0.02994159]
[1646296014115,0.19125404,43525.0,43524.0,0.07584159]
[1646296014315,0.06148,43537.0,43524.0,0.07584159]
[1646296014514,0.19121749,43529.0,43526.0,0.057454]
[1646296014714,0.19121749,43529.0,43526.0,0.103354]
[1646296014915,0.19121749,43529.0,43528.0,0.02994159]
[1646296015214,0.23902187,43531.0,43528.0,0.02994159]
[1646296015444,0.23902187,43531.0,43530.0,0.02994159]
[1646296016848,0.23902187,43531.0,43530.0,0.03394159]
[1646296018149,0.23902187,43531.0,43530.0,0.02994159]
[1646296020604,0.23902187,43531.0,43530.0,0.03394159]
[1646296020906,0.23902187,43532.0,43530.0,0.03394159]
[1646296021108,0.23902187,43532.0,43531.0,0.02994159]
[1646296023188,0.50837762,43532.0,43531.0,0.02994159]
[1646296023789,0.23902187,43532.0,43531.0,0.02994159]
[1646296023993,0.45957119,43534.0,43531.0,0.02994159]
[1646296024192,0.45957119,43534.0,43533.0,0.02994159]
[1646296024391,0.03440446,43532.0,43525.0,0.21631331]
[1646296024590,0.2390396,43531.0,43529.0,0.14]
[1646296024789,0.27344406,43532.0,43530.0,0.14]